[Event "LTU-chT 2019"]
[Site "Lithuania"]
[Date "2019.03.31"]
[Round "5.18"]
[White "Aleknavicius, Andrius"]
[Black "Vaskevicius, Augustas"]
[Result "1/2-1/2"]
[ECO "A45"]
[WhiteElo "1724"]
[BlackElo "1935"]
[Annotator "NA"]
[PlyCount "81"]
[EventDate "2019.01.26"]
[EventType "team-tourn"]
[EventCountry "LTU"]
[SourceTitle "playchess.com"]
[Source "ChessBase"]
[SourceQuality "1"]
[TimeControl "40/5400+30:1800+30"]

1. d4 {[%emt 0:00:00]} Nf6 {[%emt 0:00:00]} 2. Nc3 {[%emt 0:00:15]} d5 {[%emt 0:00:00]} 3. Bf4 {[%emt 0:00:05]} g6 {[%emt 0:00:00]} 4. e3 {[%emt 0:00:17]} Bg7 {[%emt 0:00:10]} 5. h4 {[%emt 0:00:06]} c5 {[%emt 0:03:58]} 6. Nb5 {[%emt 0:03:13] LiveBook: 35 Games} Na6 $1 {[%emt 0:02:35]} 7. c3 {[%emt 0:01:19]} Qb6 {[%emt 0:08:47]} 8. a4 {[%emt 0:03:29]} c4 {[%emt 0:07:24]} 9. b3 {[%emt 0:00:43]} Be6 {[%emt 0:03:04]} 10. bxc4 {[%emt 0:03:38]} dxc4 {[%emt 0:00:21]} 11. Be5 {[%emt 0:00:49]} (11. Nf3 $16) 11... O-O {[%emt 0:10:13]} 12. Be2 {[%emt 0:02:55]} Bd5 $14 {[%emt 0:04:53]} 13. Bf3 {[%emt 0:13:47]} Bc6 {[%emt 0:13:33]} 14. Rb1 {[%emt 0:03:18]} Qa5 {[%emt 0:00:36]} 15. Qc2 {[%emt 0:03:22]} Nd5 {[%emt 0:05:38]} 16. Bxg7 {[%emt 0:04:13]} Kxg7 {[%emt 0:00:05]} 17. Ne2 {[%emt 0:11:44]} Nac7 {[%emt 0:07:00]} 18. e4 {[%emt 0:09:16]} Nf6 {[%emt 0:02:58]} 19. Nxc7 {[%emt 0:00:44]} Qxc7 {[%emt 0:00:02]} 20. d5 {[%emt 0:01:39]} Bd7 {[%emt 0:01:06]} 21. h5 {[%emt 0:03:06]} g5 {[%emt 0:08:28]} 22. Ng3 {[%emt 0:04:07]} h6 {[%emt 0:00:39]} 23. Qd2 {[%emt 0:05:01]} Qe5 {[%emt 0:01:15]} 24. Qd4 {[%emt 0:06:05]} Qxd4 {[%emt 0:01:45]} 25. cxd4 {[%emt 0:00:05]} e6 {[%emt 0:03:32]} 26. dxe6 {[%emt 0:00:58]} Bxe6 {[%emt 0:01:00]} 27. Rxb7 {[%emt 0:00:35]} Rfb8 {[%emt 0:00:52]} 28. Rxb8 {[%emt 0:00:20]} Rxb8 {[%emt 0:00:02]} 29. O-O {[%emt 0:00:36]} g4 {[%emt 0:02:10]} 30. Be2 {[%emt 0:00:28]} Rb4 {[%emt 0:00:26]} 31. Rc1 {[%emt 0:00:48]} c3 {[%emt 0:03:41]} 32. d5 {[%emt 0:01:50]} Bd7 {[%emt 0:00:03]} 33. Rxc3 {[%emt 0:00:17]} Nxe4 {[%emt 0:01:33]} 34. Nxe4 {[%emt 0:01:54]} Rxe4 {[%emt 0:00:01]} 35. Bb5 {[%emt 0:00:19]} Bxb5 {[%emt 0:05:12]} 36. axb5 {[%emt 0:00:07]} Rd4 {[%emt 0:00:12]} 37. Rc5 {[%emt 0:01:04]} Kf6 {[%emt 0:00:01]} 38. Rc6+ {[%emt 0:00:24]} Kg5 {[%emt 0:03:06]} 39. d6 {[%emt 0:06:03]} Rd5 {[%emt 0:00:57]} 40. Rc7 {[%emt 0:07:14]} Rxd6 {[%emt 0:00:10]} 41. Rxf7 {[%emt 0:30:57]} 1/2-1/2

[Event "LTU-chT 2019"]
[Site "Lithuania"]
[Date "2019.03.31"]
[Round "5.19"]
[White "Babrauskas, Darius"]
[Black "Siugzdinis, Tautvydas"]
[Result "1/2-1/2"]
[ECO "C11"]
[WhiteElo "2019"]
[BlackElo "1504"]
[Annotator "NA"]
[PlyCount "120"]
[EventDate "2019.01.26"]
[EventType "team-tourn"]
[EventCountry "LTU"]
[SourceTitle "playchess.com"]
[Source "ChessBase"]
[SourceQuality "1"]
[TimeControl "40/5400+30:1800+30"]

1. e4 {[%emt 0:00:00]} e6 {[%emt 0:00:00]} 2. d4 {[%emt 0:00:00]} d5 {[%emt 0:00:13]} 3. Nc3 {[%emt 0:00:00]} Nf6 {[%emt 0:00:21]} 4. e5 {[%emt 0:03:04]} Nfd7 {[%emt 0:00:12]} 5. f4 {[%emt 0:00:05] LiveBook: 7735 Games} c5 {[%emt 0:00:38]} 6. Nf3 {[%emt 0:00:03]} Nc6 {[%emt 0:01:08]} 7. Be3 {[%emt 0:00:40]} Qb6 {[%emt 0:02:18]} 8. Qd2 {[%emt 0:02:35]} a6 {[%emt 0:08:03] C11: French: Classical System: 4 e5 and 4 Bg5 dxe4} (8... Qxb2 9. Rb1 Qa3 10. f5 a6 11. fxe6 fxe6 12. Be2 Be7 13. O-O O-O 14. Kh1 cxd4 15. Nxd4 Ndxe5 16. Rb3 Rxf1+ 17. Bxf1 {0-1 (32) Nakamura,H (2758)-Morozevich,A (2762) Reggio Emilia 2012}) 9. dxc5 {[%emt 0:03:48]} (9. Rb1 $11) 9... Bxc5 {[%emt 0:00:18]} (9... Qxb2 $17 10. Rb1 Qa3) 10. Bxc5 {[%emt 0:00:04]} Nxc5 {[%emt 0:00:06]} 11. O-O-O {[%emt 0:00:40]} Bd7 {[%emt 0:13:09]} 12. Be2 $146 {[%emt 0:00:58]} ({Predecessor:} 12. Nd4 Qc7 13. Kb1 b5 14. Nxc6 Bxc6 15. Qe3 Qe7 16. Ne2 {1-0 (24) Nishimura,H (2325)-Shovunov,B (2300) Budapest 1996}) 12... O-O-O {[%emt 0:02:58]} 13. Nd4 {[%emt 0:01:49]} Ne4 {[%emt 0:08:48]} 14. Nxe4 {[%emt 0:01:44]} dxe4 {[%emt 0:00:04]} 15. Qe3 {[%emt 0:09:56]} Nxd4 {[%emt 0:03:50]} 16. Rxd4 {[%emt 0:00:36]} Bc6 {[%emt 0:00:05]} 17. Rhd1 {[%emt 0:00:23]} Rxd4 {[%emt 0:01:16]} 18. Rxd4 {[%emt 0:05:00]} Rd8 {[%emt 0:00:07]} 19. Rxd8+ {[%emt 0:00:13]} Qxd8 {[%emt 0:00:05]} 20. Qc5 {[%emt 0:04:24]} Qh4 {[%emt 0:15:50]} 21. Qf8+ {[%emt 0:01:34] Double Attack} Kc7 {[%emt 0:00:04]} 22. Qxf7+ {[%emt 0:07:58]} Kb6 {[%emt 0:00:32]} 23. Kd1 $11 {[%emt 0:17:46]} Qxh2 {[%emt 0:01:49]} 24. Qxe6 {[%emt 0:04:42]} Qg1+ {[%emt 0:02:52]} 25. Kd2 {[%emt 0:00:15]} Qd4+ {[%emt 0:00:16]} 26. Ke1 {[%emt 0:00:18]} e3 {[%emt 0:06:35]} 27. Qb3+ {[%emt 0:18:37]} Ka7 {[%emt 0:00:06]} 28. Qc3 {[%emt 0:01:13]} Qxf4 {[%emt 0:00:45]} 29. Qc5+ {[%emt 0:00:33]} Ka8 {[%emt 0:01:54]} 30. c4 {[%emt 0:03:09]} Qh4+ {[%emt 0:12:24]} 31. Kd1 {[%emt 0:00:25]} Qe4 {[%emt 0:00:06]} 32. Kc1 {[%emt 0:00:51]} Qxg2 {[%emt 0:00:09]} 33. Qxe3 {[%emt 0:00:27]} Qe4 {[%emt 0:02:32]} 34. Kd2 {[%emt 0:01:30]} Qb1 {[%emt 0:02:29]} 35. Qc3 {[%emt 0:01:46]} Qe4 {[%emt 0:02:56]} 36. Qe3 {[%emt 0:01:20]} Qb1 {[%emt 0:00:34]} 37. Qc3 {[%emt 0:01:33]} Qe4 {[%emt 0:00:05]} 38. b4 {[%emt 0:03:48]} b5 {[%emt 0:04:22]} 39. cxb5 {[%emt 0:01:31]} axb5 {[%emt 0:00:09]} 40. Qc5 {[%emt 0:00:48]} Qf4+ {[%emt 0:01:15]} 41. Kd1 {[%emt 0:31:53]} Qe4 {[%emt 0:32:16]} 42. a3 {[%emt 0:00:00]} Qb1+ {[%emt 0:00:00]} 43. Kd2 {[%emt 0:00:00]} Qb2+ {[%emt 0:00:00]} 44. Ke3 {[%emt 0:00:00]} Qxa3+ {[%emt 0:00:00]} 45. Bd3 {[%emt 0:00:00]} Qa7 {[%emt 0:00:00]} 46. Bxh7 {[%emt 0:00:00]} Qxc5+ {[%emt 0:00:00]} 47. bxc5 {[%emt 0:00:00]} Kb7 {[%emt 0:00:00]} 48. Kd4 {[%emt 0:00:00]} g5 {[%emt 0:00:00]} 49. e6 {[%emt 0:00:00]} g4 {[%emt 0:00:00]} 50. Bg6 {[%emt 0:00:00]} g3 {[%emt 0:00:00]} 51. Ke3 {[%emt 0:00:00]} g2 {[%emt 0:00:00]} 52. Kf2 {[%emt 0:00:00]} b4 {[%emt 0:00:00]} 53. e7 {[%emt 0:00:00]} b3 {[%emt 0:00:00]} 54. Be4 {[%emt 0:00:00]} Kc7 {[%emt 0:00:00]} 55. Bxc6 {[%emt 0:00:00]} b2 {[%emt 0:00:00]} 56. Be4 {[%emt 0:00:00]} Kd7 {[%emt 0:00:00]} 57. Kxg2 {[%emt 0:00:00]} Kxe7 {[%emt 0:00:00]} 58. Kf3 {[%emt 0:00:00]} Ke6 {[%emt 0:00:00]} 59. Ke3 {[%emt 0:01:18]} b1=Q {[%emt 0:00:00]} 60. Bxb1 {[%emt 0:00:06]} Kd5 {[%emt 0:00:00]} 1/2-1/2

[Event "LTU-chT 2019"]
[Site "Lithuania"]
[Date "2019.03.31"]
[Round "5.20"]
[White "Motuza, Nedas"]
[Black "Valiunas, Rimantas"]
[Result "0-1"]
[ECO "A40"]
[WhiteElo "1294"]
[BlackElo "2064"]
[Annotator "NA"]
[PlyCount "92"]
[EventDate "2019.01.26"]
[EventType "team-tourn"]
[EventCountry "LTU"]
[SourceTitle "playchess.com"]
[Source "ChessBase"]
[SourceQuality "1"]
[TimeControl "40/5400+30:1800+30"]

1. d4 {[%emt 0:00:00]} g6 {[%emt 0:00:57]} 2. Nf3 {[%emt 0:00:10]} Bg7 {[%emt 0:00:12]} 3. c4 {[%emt 0:01:43]} d6 {[%emt 0:02:09]} 4. Bf4 {[%emt 0:00:33]} c5 {[%emt 0:00:50]} 5. e3 {[%emt 0:01:17]} Qb6 {[%emt 0:08:45]} 6. Qd2 {[%emt 0:09:01]} Nc6 {[%emt 0:00:29]} 7. Nc3 {[%emt 0:02:25]} cxd4 {[%emt 0:00:39]} 8. exd4 {[%emt 0:13:33]} Nxd4 {[%emt 0:01:54]} 9. Nxd4 {[%emt 0:03:22]} Qxd4 {[%emt 0:00:15]} 10. Qe2 $19 {[%emt 0:04:34]} (10. Qc1 $17 {was called for.}) 10... Qxf4 {[%emt 0:11:20]} 11. Nd5 {[%emt 0:00:38]} Qe5 {[%emt 0:02:00]} 12. Qxe5 {[%emt 0:02:29]} Bxe5 {[%emt 0:00:09]} 13. Nc7+ {[%emt 0:00:08]} Kd8 {[%emt 0:01:04]} 14. Nxa8 {[%emt 0:00:08]} b6 {[%emt 0:02:40]} 15. Be2 {[%emt 0:03:59]} Bb7 {[%emt 0:02:07]} 16. Bf3 {[%emt 0:00:29]} Bxf3 {[%emt 0:00:58]} 17. gxf3 {[%emt 0:00:06]} Nf6 {[%emt 0:02:44]} 18. O-O-O {[%emt 0:07:29]} Kd7 {[%emt 0:00:13]} 19. Nxb6+ {[%emt 0:02:16]} axb6 {[%emt 0:00:02]} 20. h3 {[%emt 0:00:47]} Rc8 {[%emt 0:01:08]} 21. b3 {[%emt 0:00:35]} b5 {[%emt 0:02:24]} 22. Rhe1 {[%emt 0:02:48]} Bf4+ {[%emt 0:00:29]} 23. Kb1 {[%emt 0:01:08]} bxc4 {[%emt 0:00:20]} 24. Rd4 {[%emt 0:00:58]} e5 {[%emt 0:02:44]} 25. Rxc4 {[%emt 0:01:18]} Rb8 {[%emt 0:02:40]} 26. Re2 {[%emt 0:00:43]} d5 {[%emt 0:00:29]} 27. Rc5 {[%emt 0:01:26]} d4 {[%emt 0:01:06]} 28. Rec2 {[%emt 0:02:30]} Rb7 {[%emt 0:04:06]} 29. Rb2 {[%emt 0:03:12]} Kd6 {[%emt 0:00:49]} 30. Rc8 {[%emt 0:06:19]} Nd5 {[%emt 0:08:53]} 31. Rd8+ {[%emt 0:01:35]} Ke6 {[%emt 0:00:41]} 32. Rc2 {[%emt 0:02:07]} Nb4 {[%emt 0:05:11]} 33. Rc4 {[%emt 0:05:20]} Ke7 {[%emt 0:03:05]} 34. Rdc8 {[%emt 0:02:45]} Nd3 {[%emt 0:02:59]} 35. R4c7+ {[%emt 0:00:54]} Rxc7 {[%emt 0:00:05]} 36. Rxc7+ {[%emt 0:00:10]} Kd8 {[%emt 0:00:20]} 37. Rc2 {[%emt 0:01:07]} Ne1 {[%emt 0:00:26]} 38. Rc5 {[%emt 0:02:58]} d3 {[%emt 0:01:07]} 39. a4 {[%emt 0:00:34]} d2 {[%emt 0:01:01]} 40. Rd5+ {[%emt 0:00:43]} Kc7 {[%emt 0:00:37]} 41. b4 {[%emt 0:30:43]} f5 {[%emt 0:36:08]} 42. b5 {[%emt 0:01:54]} e4 {[%emt 0:00:15]} 43. a5 {[%emt 0:03:11]} Nd3 {[%emt 0:00:08]} 44. b6+ {[%emt 0:01:44]} Kc6 {[%emt 0:00:31]} 45. fxe4 {[%emt 0:01:00]} d1=Q+ {[%emt 0:00:10]} 46. Ka2 {[%emt 0:00:09]} Qc2+ {[%emt 0:00:37]} 0-1

[Event "LTU-chT 2019"]
[Site "Lithuania"]
[Date "2019.04.27"]
[Round "6.2"]
[White "Sulskis, Sarunas"]
[Black "Krivonosov, Oleg"]
[Result "0-1"]
[ECO "C67"]
[WhiteElo "2529"]
[BlackElo "2398"]
[Annotator "ChessBase"]
[PlyCount "154"]
[EventDate "2019.01.26"]
[EventType "team-tourn"]
[EventCountry "LTU"]
[SourceTitle "playchess.com"]
[Source "ChessBase"]
[SourceQuality "1"]
[TimeControl "40/5400+30:1800+30"]

1. e4 {[%emt 0:00:00]} e5 {[%emt 0:00:00]} 2. Nf3 {[%emt 0:00:00]} Nc6 {[%emt 0:00:00]} 3. Bb5 {[%emt 0:00:00]} Nf6 {[%emt 0:00:00]} 4. O-O {[%emt 0:00:00]} Nxe4 {[%emt 0:00:00]} 5. d4 {[%emt 0:00:14]} Nd6 {[%emt 0:00:00]} 6. Bg5 {[%emt 0:01:16]} Be7 {[%emt 0:01:14]} 7. Bxe7 {[%emt 0:00:20]} Qxe7 {[%emt 0:00:43]} 8. Nxe5 {[%emt 0:08:52]} Nxe5 {[%emt 0:00:54]} 9. Re1 {[%emt 0:00:35]} O-O {[%emt 0:04:05]} 10. Rxe5 {[%emt 0:04:19]} Qd8 {[%emt 0:03:17]} 11. Bd3 {[%emt 0:02:12]} Ne8 {[%emt 0:04:46]} 12. Qh5 {[%emt 0:09:00]} h6 {[%emt 0:05:10]} 13. Nc3 {[%emt 0:02:45]} d6 {[%emt 0:05:00]} 14. Re3 {[%emt 0:03:31]} Nf6 {[%emt 0:02:01]} 15. Qh4 {[%emt 0:04:17]} Re8 {[%emt 0:08:44]} 16. h3 {[%emt 0:04:19]} Bd7 {[%emt 0:05:38]} 17. Rae1 {[%emt 0:03:25]} Rxe3 {[%emt 0:07:11]} 18. Rxe3 {[%emt 0:10:16]} d5 {[%emt 0:05:48]} 19. g4 {[%emt 0:11:43]} c5 {[%emt 0:03:37]} 20. g5 {[%emt 0:05:46]} hxg5 {[%emt 0:01:49]} 21. Qxg5 {[%emt 0:03:19]} cxd4 {[%emt 0:02:44]} 22. Rg3 {[%emt 0:00:17]} Ne8 {[%emt 0:06:06]} 23. Qxd8 {[%emt 0:00:07]} Rxd8 {[%emt 0:00:24]} 24. Ne2 {[%emt 0:01:01]} Nf6 {[%emt 0:00:22]} 25. Nxd4 {[%emt 0:00:55]} Re8 {[%emt 0:05:45]} 26. Kg2 {[%emt 0:02:05]} Kf8 {[%emt 0:04:32]} 27. Be2 {[%emt 0:01:39]} Re4 {[%emt 0:00:15]} 28. c3 {[%emt 0:00:58]} g6 {[%emt 0:03:49]} 29. Rd3 {[%emt 0:04:50]} Bb5 {[%emt 0:01:58]} 30. Rd2 {[%emt 0:00:18]} Bxe2 {[%emt 0:01:25]} 31. Nxe2 {[%emt 0:01:38]} Ke7 {[%emt 0:01:54]} 32. f3 {[%emt 0:01:27]} Ra4 {[%emt 0:00:46]} 33. b3 {[%emt 0:00:23]} Rh4 {[%emt 0:01:02]} 34. Kg3 {[%emt 0:00:18]} Rh8 {[%emt 0:01:38]} 35. Rd4 {[%emt 0:03:37]} Kd6 {[%emt 0:03:46]} 36. Kg2 {[%emt 0:02:02]} Re8 {[%emt 0:00:41]} 37. Kf2 {[%emt 0:01:01]} Rh8 {[%emt 0:01:01]} 38. h4 {[%emt 0:03:00]} a5 {[%emt 0:03:41]} 39. Ke3 {[%emt 0:02:48]} b6 {[%emt 0:02:11]} 40. a4 {[%emt 0:02:44]} Rc8 {[%emt 0:01:32]} 41. Kd2 {[%emt 0:31:32]} Rc7 {[%emt 0:33:10]} 42. Nf4 {[%emt 0:01:37]} Ke5 {[%emt 0:01:29]} 43. Nd3+ {[%emt 0:00:27]} Ke6 {[%emt 0:00:00]} 44. b4 {[%emt 0:00:00]} Rc8 {[%emt 0:00:00]} 45. Nc1 {[%emt 0:00:00]} Nd7 {[%emt 0:00:00]} 46. Ne2 {[%emt 0:00:00]} Nf6 {[%emt 0:00:00]} 47. Ke3 {[%emt 0:00:00]} Ke5 {[%emt 0:00:00]} 48. Kd3 {[%emt 0:00:00]} Nh5 {[%emt 0:00:00]} 49. Rg4 {[%emt 0:00:00]} Nf6 {[%emt 0:00:00]} 50. Rd4 {[%emt 0:00:00]} Nh5 {[%emt 0:00:00]} 51. c4 {[%emt 0:00:00]} Nf6 {[%emt 0:00:00]} 52. bxa5 {[%emt 0:00:00]} bxa5 {[%emt 0:00:00]} 53. Nc3 {[%emt 0:00:00]} Rc5 {[%emt 0:03:07]} 54. f4+ {[%emt 0:00:00]} Ke6 {[%emt 0:00:23]} 55. cxd5+ {[%emt 0:00:00]} Nxd5 {[%emt 0:00:41]} 56. Re4+ {[%emt 0:00:00]} Kf6 {[%emt 0:00:31]} 57. Nxd5+ {[%emt 0:00:00]} Rxd5+ {[%emt 0:00:08]} 58. Kc4 {[%emt 0:00:00]} Rh5 {[%emt 0:01:54]} 59. Re1 {[%emt 0:01:53]} Rxh4 {[%emt 0:00:09]} 60. Kb5 {[%emt 0:01:08]} Rh5+ {[%emt 0:00:28]} 61. Kb6 {[%emt 0:00:25]} Rf5 {[%emt 0:01:07]} 62. Rd1 {[%emt 0:01:04]} Kg7 {[%emt 0:00:49]} 63. Rd2 {[%emt 0:00:19]} f6 {[%emt 0:01:07]} 64. Rd1 {[%emt 0:00:50]} Kf7 {[%emt 0:00:22]} 65. Ka6 {[%emt 0:00:30]} g5 {[%emt 0:00:04]} 66. fxg5 {[%emt 0:00:06]} fxg5 {[%emt 0:01:03]} 67. Rg1 {[%emt 0:00:08]} Kg6 {[%emt 0:00:16]} 68. Kb6 {[%emt 0:00:15]} Kh5 {[%emt 0:00:28]} 69. Rh1+ {[%emt 0:00:03]} Kg4 {[%emt 0:00:20]} 70. Rg1+ {[%emt 0:00:04]} Kh3 {[%emt 0:00:20]} 71. Rh1+ {[%emt 0:00:04]} Kg2 {[%emt 0:00:30]} 72. Rh5 {[%emt 0:00:10]} Kf3 {[%emt 0:01:27]} 73. Rh1 {[%emt 0:00:13]} g4 {[%emt 0:00:32]} 74. Rf1+ {[%emt 0:00:04]} Ke4 {[%emt 0:00:19]} 75. Rg1 {[%emt 0:00:06]} Kf4 {[%emt 0:00:10]} 76. Rf1+ {[%emt 0:00:04]} Kg5 {[%emt 0:00:04]} 77. Rg1 {[%emt 0:00:06]} Kh4 0-1

[Event "LTU-chT 2019"]
[Site "Lithuania"]
[Date "2019.04.27"]
[Round "6.3"]
[White "Sakalauskas, Vaidas"]
[Black "Starostits, Ilmars"]
[Result "1/2-1/2"]
[ECO "D85"]
[WhiteElo "2346"]
[BlackElo "2450"]
[Annotator "ChessBase"]
[PlyCount "108"]
[EventDate "2019.01.26"]
[EventType "team-tourn"]
[EventCountry "LTU"]
[SourceTitle "playchess.com"]
[Source "ChessBase"]
[SourceQuality "1"]
[TimeControl "40/5400+30:1800+30"]

1. d4 Nf6 2. c4 g6 3. Nc3 d5 4. cxd5 Nxd5 5. Bd2 Bg7 6. e4 Nb6 7. Be3 O-O 8. Be2 a5 9. Nf3 a4 10. O-O a3 11. b3 f5 12. exf5 Bxf5 13. Rc1 c6 14. Qd2 Na6 15. Rfd1 Nb4 16. Bh6 N6d5 17. Bxg7 Kxg7 18. Ne5 Qd6 19. Bf3 Nf6 20. Qe2 Qd8 21. Na4 Nfd5 22. Nc5 Bc8 23. g3 Nc7 24. Bg4 e6 25. Nc4 Nbd5 26. Qe5+ Qf6 27. Nd6 Qxe5 28. dxe5 b6 29. Nxc8 bxc5 30. Nd6 Nb4 31. Rd2 h5 32. Bh3 Rf3 33. Rxc5 Rxb3 34. axb3 a2 35. Rxa2 Rxa2 36. Rc4 Ra1+ 37. Bf1 Ncd5 38. Ne4 Nd3 39. Rxc6 Nxe5 40. Rxe6 Nf3+ 41. Kg2 Nh4+ 42. Kh3 Nf3 43. Bc4 g5 44. Kg2 g4 45. Bf1 Nh4+ 46. Kg1 Nf3+ 47. Kg2 h4 48. h3 gxh3+ 49. Kxh3 Rxf1 50. Rd6 Ne7 51. Rd7 Kf8 52. Rd8+ Kg7 53. Rd7 Kf8 54. Rd8+ Kg7 1/2-1/2

[Event "LTU-chT 2019"]
[Site "Lithuania"]
[Date "2019.04.27"]
[Round "6.4"]
[White "Tvarijonas, Tomas"]
[Black "Vedrickas, Tautvydas"]
[Result "1/2-1/2"]
[ECO "B06"]
[WhiteElo "2248"]
[BlackElo "2390"]
[Annotator "NA"]
[PlyCount "218"]
[EventDate "2019.01.26"]
[EventType "team-tourn"]
[EventCountry "LTU"]
[SourceTitle "playchess.com"]
[Source "ChessBase"]
[SourceQuality "1"]
[TimeControl "40/5400+30:1800+30"]

1. e4 {[%emt 0:00:00]} g6 {[%emt 0:00:00]} 2. d4 {[%emt 0:00:00]} Bg7 {[%emt 0:00:00]} 3. Nc3 {[%emt 0:00:04]} d6 {[%emt 0:00:00]} 4. f4 {[%emt 0:00:31]} a6 {[%emt 0:00:00]} 5. Nf3 {[%emt 0:00:43]} b5 {[%emt 0:00:00]} 6. Bd3 {[%emt 0:02:16]} Nd7 {[%emt 0:00:03]} 7. a4 {[%emt 0:01:10] B06: Modern Defence} c5 {[%emt 0:18:41]} (7... b4 8. Ne2 c5 9. c3 Bb7 10. O-O Ngf6 11. e5 Nd5 12. Bd2 bxc3 13. bxc3 cxd4 14. cxd4 O-O {0-1 (49) Anand,V (2759)-Nakamura,H (2769) Leuven 2018}) 8. axb5 {[%emt 0:06:23]} cxd4 {[%emt 0:00:47]} 9. Nd5 {[%emt 0:08:25]} e6 $146 {[%emt 0:05:23]} ({Predecessor:} 9... Ngf6 10. Nxf6+ Bxf6 11. bxa6 O-O 12. b4 Qb6 13. Qe2 Qxb4+ 14. Bd2 Qb6 {0-1 (51) Kerigan,D (2353)-Yilmazyerli,M (2443) Gebze 2016}) 10. Nb4 {[%emt 0:01:41]} Ne7 {[%emt 0:00:22]} 11. O-O {[%emt 0:10:50]} O-O {[%emt 0:03:41]} 12. Qe1 {[%emt 0:03:27]} Nc5 {[%emt 0:05:14]} 13. Qh4 {[%emt 0:06:19]} Bb7 {[%emt 0:07:53]} 14. bxa6 {[%emt 0:08:13]} Ra7 {[%emt 0:36:36]} 15. Bd2 {[%emt 0:01:37]} Ba8 {[%emt 0:00:08]} 16. f5 {[%emt 0:06:39]} exf5 {[%emt 0:01:39]} 17. exf5 {[%emt 0:09:20]} Nxd3 {[%emt 0:04:13]} (17... Nxf5 $16 18. Bxf5 gxf5) 18. fxg6 {[%emt 0:01:22]} ({Of course not} 18. Nxd3 $6 Nxf5 19. Qxd8 Rxd8 $11) 18... Nxg6 {[%emt 0:06:33]} 19. Qxd8 {[%emt 0:00:18]} Rxd8 {[%emt 0:00:01]} 20. cxd3 {[%emt 0:01:34]} Ne5 {[%emt 0:02:16]} 21. Nxd4 {[%emt 0:02:56]} Nxd3 {[%emt 0:00:25]} 22. Nbc6 {[%emt 0:04:01]} Rc8 {[%emt 0:01:22]} 23. Be3 {[%emt 0:02:26]} (23. Nxa7 $2 Bxd4+ 24. Kh1 Bxa7 $19) 23... Rac7 {[%emt 0:00:12]} 24. Na5 {[%emt 0:01:32]} Re7 {[%emt 0:00:52]} 25. Bf2 {[%emt 0:03:46]} Re4 {[%emt 0:03:39]} 26. Nf5 {[%emt 0:01:06]} Rc2 {[%emt 0:01:12]} 27. Nxg7 {[%emt 0:02:24]} Kxg7 {[%emt 0:00:09]} 28. Rad1 {[%emt 0:01:26]} Rg4 {[%emt 0:00:33]} 29. Nb7 {[%emt 0:00:39]} Ne5 {[%emt 0:01:24]} 30. g3 {[%emt 0:01:38]} Rxb2 {[%emt 0:00:53]} 31. Bd4 {[%emt 0:00:50]} Ra2 {[%emt 0:00:16]} 32. Rf4 {[%emt 0:02:22]} Rg5 {[%emt 0:00:24]} 33. Nxd6 {[%emt 0:01:22]} (33. Ra1 $16 Rd2 34. Ra3) 33... f6 {[%emt 0:00:20]} (33... Kg6 $1 $11) 34. Nf5+ {[%emt 0:05:19]} Kf7 {[%emt 0:00:46]} 35. Bxe5 {[%emt 0:01:30]} fxe5 {[%emt 0:00:06]} 36. Rf2 {[%emt 0:01:14]} Rxa6 {[%emt 0:01:03]} 37. h4 {[%emt 0:00:51]} Rgg6 {[%emt 0:00:16]} 38. Rd7+ {[%emt 0:01:01]} Ke6 {[%emt 0:00:34]} 39. Rd1 {[%emt 0:01:40]} Be4 {[%emt 0:00:34]} 40. Ne3 {[%emt 0:00:32]} Rxg3+ {[%emt 0:00:08]} 41. Ng2 {[%emt 0:00:49]} Raa3 {[%emt 0:11:31]} 42. Rd8 {[%emt 0:04:34]} Ke7 {[%emt 0:01:24]} 43. Rdd2 {[%emt 0:05:47]} Rg4 {[%emt 0:00:58]} 44. Kf1 {[%emt 0:01:02]} Ra1+ {[%emt 0:02:07]} 45. Ne1 {[%emt 0:00:02]} Rxh4 {[%emt 0:00:22]} 46. Ke2 {[%emt 0:00:20]} Bg6 {[%emt 0:08:07]} 47. Nc2 {[%emt 0:05:33]} Ra2 {[%emt 0:02:22]} 48. Ne3 {[%emt 0:01:02]} Bh5+ {[%emt 0:00:13]} 49. Kf1 {[%emt 0:00:22]} Rxd2 {[%emt 0:02:00]} 50. Rxd2 {[%emt 0:00:02]} Ke6 {[%emt 0:00:19]} 51. Ra2 {[%emt 0:00:53]} Bg6 {[%emt 0:01:35]} 52. Ra6+ {[%emt 0:00:34]} Kf7 {[%emt 0:00:11]} 53. Kf2 {[%emt 0:00:40]} Rb4 {[%emt 0:00:26]} 54. Ra5 {[%emt 0:01:39]} Ke6 {[%emt 0:00:32]} 55. Ra6+ {[%emt 0:00:22]} Kd7 {[%emt 0:00:17]} 56. Nd5 {[%emt 0:03:50]} Rb3 {[%emt 0:00:29]} 57. Nf6+ {[%emt 0:00:18]} Kd8 {[%emt 0:02:30]} 58. Re6 {[%emt 0:03:19]} Rb4 {[%emt 0:00:57]} 59. Nxh7 {[%emt 0:01:32]} Bxh7 {[%emt 0:00:25]} 60. Rxe5 {[%emt 0:00:10]} Kd7 {[%emt 0:00:20]} 61. Rh5 {[%emt 0:00:14]} Bg6 {[%emt 0:00:12]} 62. Rg5 {[%emt 0:00:05]} Bf7 {[%emt 0:00:09]} 63. Rf5 {[%emt 0:00:08]} Ke6 {[%emt 0:00:06]} 64. Ra5 {[%emt 0:00:04]} Rb3 {[%emt 0:00:15]} 65. Ke2 {[%emt 0:00:07]} Kd6 {[%emt 0:00:20]} 66. Kd2 {[%emt 0:00:10]} Bd5 {[%emt 0:00:06]} 67. Ke2 {[%emt 0:00:21]} Ke5 {[%emt 0:00:11]} 68. Kf2 {[%emt 0:00:10]} Rh3 {[%emt 0:01:42]} 69. Rb5 {[%emt 0:00:38]} Ra3 {[%emt 0:00:09]} 70. Rb4 {[%emt 0:00:29]} Be4 {[%emt 0:00:07]} 71. Rb8 {[%emt 0:00:11]} Kf4 {[%emt 0:00:11]} 72. Rf8+ {[%emt 0:00:13]} Bf5 {[%emt 0:00:03]} 73. Re8 {[%emt 0:00:28]} Ra2+ {[%emt 0:00:21]} 74. Re2 {[%emt 0:00:11]} Ra8 {[%emt 0:00:13]} 75. Re7 {[%emt 0:00:41]} Rh8 {[%emt 0:00:32]} 76. Ke2 {[%emt 0:02:17]} Rh2+ {[%emt 0:00:07]} 77. Kd1 {[%emt 0:00:24]} Be4 {[%emt 0:00:20]} 78. Kc1 {[%emt 0:01:19]} Ke3 {[%emt 0:00:16]} 79. Re8 {[%emt 0:01:35]} Rc2+ {[%emt 0:00:19]} 80. Kd1 {[%emt 0:00:02]} Rb2 {[%emt 0:00:20]} 81. Rc8 {[%emt 0:00:19]} Rb1+ {[%emt 0:00:33]} 82. Rc1 {[%emt 0:00:03]} Rb8 {[%emt 0:00:41]} 83. Rc7 {[%emt 0:00:13]} Rh8 {[%emt 0:03:19]} 84. Kc1 {[%emt 0:00:22]} Rh2 {[%emt 0:00:15]} 85. Rc8 {[%emt 0:00:40]} Kd4 {[%emt 0:00:36]} 86. Rd8+ {[%emt 0:00:36]} Bd5 {[%emt 0:00:07]} 87. Kd1 {[%emt 0:00:20]} Kc4 {[%emt 0:01:10]} 88. Ke1 {[%emt 0:00:47]} Ra2 {[%emt 0:01:21]} 89. Kf1 {[%emt 0:03:10]} Kd4 {[%emt 0:00:14]} 90. Rd7 {[%emt 0:00:18]} Ke4 {[%emt 0:00:27]} 91. Rd8 {[%emt 0:01:47]} Kf3 {[%emt 0:00:27]} 92. Ke1 {[%emt 0:00:55]} Be4 {[%emt 0:00:47]} 93. Kd1 {[%emt 0:00:52]} Ke3 {[%emt 0:00:58]} 94. Rc8 {[%emt 0:00:15]} Ra1+ {[%emt 0:01:08]} 95. Rc1 {[%emt 0:00:02]} Ra8 {[%emt 0:00:21]} 96. Rc7 {[%emt 0:00:03]} Rb8 {[%emt 0:00:36]} 97. Rc3+ {[%emt 0:03:25]} Bd3 {[%emt 0:00:43]} 98. Rc7 {[%emt 0:00:08]} Be4 {[%emt 0:02:36]} 99. Rc3+ {[%emt 0:00:06]} Kd4 {[%emt 0:00:22]} 100. Rc7 {[%emt 0:00:15]} Bd3 {[%emt 0:00:35]} 101. Rd7+ {[%emt 0:01:17]} Kc3 {[%emt 0:00:03]} 102. Rc7+ {[%emt 0:00:59]} Bc4 {[%emt 0:00:09]} 103. Kc1 {[%emt 0:00:37]} Ra8 {[%emt 0:01:04]} 104. Rb7 {[%emt 0:00:36]} Ra1+ {[%emt 0:00:31]} 105. Rb1 {[%emt 0:00:02]} Ra2 {[%emt 0:00:20]} 106. Rb8 $1 {[%emt 0:00:15]} Rc2+ {[%emt 0:00:17]} 107. Kd1 $11 {[%emt 0:01:06]} Rf2 {[%emt 0:00:25]} 108. Re8 {[%emt 0:00:08]} Rf1+ {[%emt 0:01:33]} 109. Re1 {[%emt 0:00:04]} Rf8 {[%emt 0:00:14]} 1/2-1/2